bitfinex/quotes_BTCUSD_20230404
["timestamp","ask_amount","ask_price","bid_price","bid_amount"]
[1680601212317,0.90108758,28105.0,28104.0,0.64139]
[1680601212522,0.95703458,28105.0,28104.0,0.64139]
[1680601212626,0.49793883,28105.0,28104.0,0.64139]
[1680601212860,0.44199183,28105.0,28104.0,0.64139]
[1680601213355,0.38377362,28105.0,28104.0,0.64139]
[1680601213590,0.20723774,28105.0,28104.0,0.97216336]
[1680601213790,0.20705774,28105.0,28104.0,0.97216336]
[1680601216155,0.20723774,28105.0,28104.0,0.97216336]
[1680601217016,0.20723774,28105.0,28104.0,1.15006336]
[1680601218926,0.20705774,28105.0,28104.0,1.15006336]
[1680601219165,0.2067228,28105.0,28104.0,0.9368242]
[1680601220020,0.2067228,28105.0,28104.0,1.15017005]
[1680601220201,0.20709014,28105.0,28104.0,0.9368242]
[1680601220854,0.20709014,28105.0,28104.0,0.9370042]
[1680601221041,0.20709014,28105.0,28104.0,0.9368242]
[1680601221786,0.20709014,28105.0,28104.0,0.9370042]
[1680601222791,0.20701136,28105.0,28104.0,0.9370042]
[1680601223469,0.04097037,28105.0,28104.0,0.98173084]
[1680601223676,0.04097037,28105.0,28104.0,1.64353595]
[1680601223898,0.00413737,28105.0,28104.0,1.19345084]
[1680601224124,0.00377003,28105.0,28104.0,1.55174641]
[1680601224315,0.00377003,28105.0,28104.0,1.80754876]
[1680601224995,0.00377003,28105.0,28104.0,1.78346588]
[1680601225217,0.00377003,28105.0,28104.0,2.00275144]
[1680601225671,0.00377003,28105.0,28104.0,2.02475144]
[1680601226142,0.00377003,28105.0,28104.0,2.00275144]
[1680601226367,0.00377003,28105.0,28104.0,2.59102904]
[1680601226813,0.00377003,28105.0,28104.0,2.00275144]
[1680601227047,0.02299,28111.0,28104.0,2.00275144]
[1680601227048,0.02305,28112.0,28110.0,0.14114848]
[1680601227275,0.02299,28112.0,28111.0,1.02889437]
[1680601227504,0.02299,28112.0,28111.0,2.13964325]
[1680601227734,0.02299,28112.0,28111.0,2.17254325]
[1680601227983,0.02299,28115.0,28113.0,0.14114848]
[1680601228210,0.02299,28115.0,28113.0,1.07726779]
[1680601228584,0.00099404,28118.0,28115.0,0.014227]
[1680601228586,0.00099404,28118.0,28117.0,0.14114848]
[1680601228785,0.00099404,28118.0,28117.0,2.19972147]
[1680601228990,0.02299,28120.0,28117.0,2.53690466]
[1680601229201,0.02299,28120.0,28119.0,0.51564735]
[1680601229424,0.02299,28120.0,28119.0,1.67966729]
[1680601229618,0.02299,28120.0,28119.0,1.83602229]
[1680601230176,0.02299,28120.0,28119.0,1.28837056]
[1680601230807,0.02299,28120.0,28119.0,1.13727056]
[1680601231445,0.02299,28120.0,28119.0,1.16527056]
[1680601234201,0.02299,28120.0,28119.0,1.19937056]
[1680601235019,0.02299,28120.0,28119.0,1.19919056]
[1680601236381,0.02299,28120.0,28119.0,1.19937056]
[1680601236806,0.02299,28120.0,28119.0,1.19919056]
[1680601237230,0.02299,28120.0,28119.0,1.19937056]
[1680601237641,0.02299,28120.0,28119.0,1.47589727]
[1680601238495,0.02299,28120.0,28119.0,1.04787056]
[1680601238749,0.02299,28120.0,28119.0,1.42885369]
[1680601238981,0.02299,28120.0,28119.0,1.42035369]
[1680601239194,0.02299,28120.0,28119.0,1.03937056]
[1680601239412,0.02299,28120.0,28119.0,1.4294058]
[1680601239618,0.02299,28120.0,28119.0,1.03937056]
[1680601240917,0.02299,28120.0,28119.0,1.04787056]
[1680601241763,0.02299,28120.0,28119.0,1.43473727]
[1680601244545,0.02299,28120.0,28119.0,1.61250727]
[1680601249252,0.02299,28120.0,28119.0,1.20576556]
[1680601249472,0.02299,28120.0,28119.0,1.20558556]
[1680601249903,0.02299,28120.0,28119.0,1.20576556]
[1680601250105,0.02299,28120.0,28119.0,1.34354056]
[1680601250539,0.02288776,28120.0,28119.0,1.34336056]
[1680601250947,0.02538776,28120.0,28119.0,1.34336056]
[1680601251394,0.02538776,28120.0,28119.0,1.19136056]
[1680601252022,0.02538776,28120.0,28119.0,1.52116563]
[1680601252238,0.02538776,28120.0,28119.0,1.19136056]
[1680601252445,0.02538776,28120.0,28119.0,1.62442249]
[1680601252877,0.02538776,28120.0,28119.0,1.32442249]
[1680601253290,0.02538776,28120.0,28119.0,1.24032249]
[1680601253712,0.02538776,28120.0,28119.0,0.19858]
[1680601253713,0.03676676,28120.0,28119.0,0.19858]
[1680601253931,0.03676676,28120.0,28119.0,0.19864]
[1680601253932,0.09561828,28120.0,28119.0,0.19864]
[1680601254136,0.09601928,28120.0,28119.0,0.19864]
[1680601254349,0.09613928,28120.0,28119.0,0.19864]
[1680601254980,0.11971061,28120.0,28119.0,0.19864]
[1680601257217,0.11971061,28120.0,28119.0,0.34843]
[1680601257400,0.11971061,28120.0,28119.0,0.37643]
[1680601258050,0.11971061,28120.0,28119.0,0.19864]
[1680601260528,0.11971061,28120.0,28119.0,0.34864]
[1680601261151,0.11936961,28120.0,28119.0,0.34864]
[1680601261360,0.11936961,28120.0,28119.0,0.19864]
[1680601261774,0.11918961,28120.0,28119.0,0.19864]
[1680601261981,0.11936961,28120.0,28119.0,0.19864]
[1680601262202,0.11971061,28120.0,28119.0,0.19864]
[1680601263524,0.11971061,28120.0,28119.0,0.49864]
[1680601263525,0.10815161,28120.0,28119.0,0.49864]
[1680601263946,0.08458028,28120.0,28119.0,0.49864]
[1680601264218,0.08423928,28120.0,28119.0,0.49864]
[1680601264875,0.08423928,28120.0,28119.0,0.82643498]
[1680601265096,0.08423928,28120.0,28119.0,0.60780573]
[1680601266192,0.08423928,28120.0,28119.0,0.69259206]
[1680601268070,0.08423928,28120.0,28119.0,1.32484208]
[1680601268284,0.08423928,28120.0,28119.0,1.32484165]
[1680601268723,0.08423928,28120.0,28119.0,1.35664165]
[1680601269593,0.08423928,28120.0,28119.0,1.22946544]
[1680601269813,0.08423928,28120.0,28119.0,1.35665946]
[1680601270039,0.08423928,28120.0,28119.0,1.18678158]
[1680601270281,0.08423928,28120.0,28119.0,1.27194386]
[1680601270983,0.08423928,28120.0,28119.0,1.38249812]
[1680601271207,0.08423928,28120.0,28119.0,1.39099812]
[1680601271888,0.08423928,28120.0,28119.0,1.56877812]
[1680601272124,0.08423928,28120.0,28119.0,1.82360568]
[1680601272795,0.08423928,28120.0,28119.0,1.64447812]
[1680601273016,0.08423928,28120.0,28119.0,1.86305209]
[1680601273921,0.08423928,28120.0,28119.0,1.86299209]
[1680601275058,0.08423928,28120.0,28119.0,1.86304209]
[1680601275279,0.08423928,28120.0,28119.0,1.64446812]
[1680601275961,0.08423928,28120.0,28119.0,1.86305023]
[1680601276181,0.08423928,28120.0,28119.0,1.8538845]
[1680601276429,0.08423928,28120.0,28119.0,2.58666175]
[1680601276647,0.08423928,28120.0,28119.0,2.80686003]
[1680601276870,0.00018,28125.0,28120.0,0.3]
[1680601277144,0.00099693,28125.0,28124.0,0.39052064]
[1680601277369,0.00099693,28125.0,28124.0,0.81050247]
[1680601277578,0.026077,28127.0,28125.0,0.3]
[1680601277812,0.0147,28127.0,28126.0,0.54764468]
[1680601278044,0.026077,28127.0,28126.0,0.08511046]
[1680601278274,0.0147,28127.0,28126.0,0.08511046]
[1680601278703,0.0147,28127.0,28126.0,0.55306276]
[1680601280129,0.0147,28127.0,28126.0,0.4679523]
[1680601280352,0.0147,28127.0,28126.0,0.55306276]
[1680601280570,0.0147,28127.0,28126.0,0.55324276]
[1680601280787,0.2,28128.0,28126.0,0.55324276]
[1680601281020,0.2,28128.0,28126.0,0.09429046]
[1680601281248,0.02317,28129.0,28127.0,1.93416285]
[1680601281476,0.02317,28129.0,28128.0,1.09346469]
[1680601281477,0.02299,28129.0,28128.0,1.09346469]
[1680601281709,0.02299,28129.0,28128.0,1.39346469]
[1680601282140,0.02299,28129.0,28128.0,1.22324756]
[1680601282379,0.02299,28129.0,28128.0,3.12188355]
[1680601282602,0.02299,28129.0,28128.0,3.15006355]
[1680601282818,0.02299,28129.0,28128.0,2.68756335]
[1680601283254,0.02299,28129.0,28128.0,3.58327237]
[1680601283476,0.02299,28129.0,28128.0,3.45567391]
[1680601284114,0.02299,28129.0,28128.0,3.02640723]
[1680601284557,0.02299,28129.0,28128.0,3.05440723]
[1680601284978,0.02299,28129.0,28128.0,3.47453282]
[1680601285415,0.02299,28129.0,28128.0,3.05440723]
[1680601285635,0.02299,28129.0,28128.0,3.50514566]
[1680601285868,0.02299,28129.0,28128.0,3.13010723]
[1680601286540,0.02299,28129.0,28128.0,3.25770569]
[1680601286767,0.02299,28129.0,28128.0,3.76314845]
[1680601287442,0.02299,28129.0,28128.0,3.80576712]
[1680601287658,0.02299,28129.0,28128.0,3.76301852]
[1680601287874,0.02299,28129.0,28128.0,3.77723852]
[1680601288323,0.02299,28129.0,28128.0,3.76300629]
[1680601288547,0.02299,28129.0,28128.0,3.59242629]
[1680601288778,0.02299,28129.0,28128.0,3.31483899]
[1680601289015,0.02299,28129.0,28128.0,3.86217918]
[1680601289233,0.02299,28129.0,28128.0,3.74922196]
[1680601289691,0.02299,28129.0,28128.0,3.41430563]
[1680601289912,0.02299,28129.0,28128.0,3.7350028]
[1680601290191,0.02299,28129.0,28128.0,3.27258625]
[1680601290643,0.02299,28129.0,28128.0,3.93148304]
[1680601290874,0.02299,28129.0,28128.0,4.08328304]
[1680601291090,0.02299,28129.0,28128.0,4.29605368]
[1680601291333,0.02299,28129.0,28128.0,4.05528304]
[1680601291578,0.02299,28129.0,28128.0,4.08328304]
[1680601292257,0.02299,28129.0,28128.0,4.18258215]
[1680601293392,0.02299,28129.0,28128.0,4.17758215]
[1680601293632,0.02299,28129.0,28128.0,4.17740215]
[1680601294102,0.02299,28129.0,28128.0,4.03518502]
[1680601294771,0.02299,28129.0,28128.0,4.13518502]
[1680601295954,0.02299,28129.0,28128.0,4.12096502]
[1680601296190,0.02299,28129.0,28128.0,3.78594682]
[1680601296648,0.02299,28129.0,28128.0,3.65864771]
[1680601298025,0.02299,28129.0,28128.0,3.50704771]
[1680601300056,0.02299,28129.0,28128.0,3.33409826]
[1680601300276,0.02299,28129.0,28128.0,3.24926111]
[1680601300509,0.02299,28129.0,28128.0,3.33409826]
[1680601302287,0.02299,28129.0,28128.0,3.34831826]
[1680601303244,0.02299,28129.0,28128.0,3.52602826]
[1680601305258,0.02299,28129.0,28128.0,3.52603826]
[1680601307200,0.02299,28129.0,28128.0,3.65333737]
[1680601307872,0.02299,28129.0,28128.0,3.63911737]
[1680601308509,0.02299,28129.0,28128.0,3.51181826]
[1680601308948,0.02299,28129.0,28128.0,3.65333737]
[1680601309163,0.02299,28129.0,28128.0,3.52603826]
[1680601309410,0.02299,28129.0,28128.0,3.65333737]
[1680601309600,0.02299,28129.0,28128.0,3.98833225]
[1680601309869,0.02299,28129.0,28128.0,3.65319471]
[1680601310542,0.02299,28129.0,28128.0,3.98146722]
[1680601311044,0.02299,28129.0,28128.0,3.5116756]
[1680601311485,0.02299,28129.0,28128.0,3.56297471]
[1680601311953,0.02299,28129.0,28128.0,4.25951203]
[1680601312616,0.02299,28129.0,28128.0,4.35608106]
[1680601312834,0.02299,28129.0,28128.0,4.44078901]
[1680601313069,0.02299,28129.0,28128.0,4.44078895]
[1680601313261,0.02299,28129.0,28128.0,4.0209588]
[1680601313515,0.02299,28129.0,28128.0,4.35608329]
[1680601314626,0.02299,28129.0,28128.0,3.9123326]
[1680601314842,0.02299,28129.0,28128.0,4.25702936]
[1680601315059,0.02299,28129.0,28128.0,3.8981126]
[1680601315491,0.02299,28129.0,28128.0,4.08254973]
[1680601316196,0.02299,28129.0,28128.0,3.99030126]
[1680601316426,0.02299,28129.0,28128.0,4.16802126]
[1680601317094,0.02299,28129.0,28128.0,3.99780413]
[1680601317747,0.02299,28129.0,28128.0,3.86103349]
[1680601317979,0.02299,28129.0,28128.0,4.93990429]
[1680601318206,0.02299,28129.0,28128.0,4.98457952]
[1680601318429,0.02299,28129.0,28128.0,5.23871788]
[1680601319097,0.02299,28129.0,28128.0,5.4445179]
[1680601319320,0.02299,28129.0,28128.0,5.4725179]
[1680601319542,0.02299,28129.0,28128.0,5.4445179]
[1680601319958,0.02299,28129.0,28128.0,5.4725179]
[1680601320710,0.02291471,28129.0,28128.0,5.4725179]
[1680601321144,0.02291471,28129.0,28128.0,5.31689032]
[1680601321349,0.02291471,28129.0,28128.0,5.29906668]
[1680601323396,0.02291471,28129.0,28128.0,5.04492832]
[1680601329945,0.02291471,28129.0,28128.0,5.21515196]
[1680601330375,0.02291471,28129.0,28128.0,5.59227153]
[1680601330594,0.02291471,28129.0,28128.0,5.21515196]
[1680601330839,0.02291471,28129.0,28128.0,5.21355196]
[1680601331456,0.02291471,28129.0,28128.0,5.59067153]
[1680601332550,0.02291471,28129.0,28128.0,5.21355196]
[1680601333014,0.02291471,28129.0,28128.0,5.59067153]
[1680601333219,0.02299,28137.0,28132.0,0.23558]
[1680601333220,0.02317,28137.0,28132.0,0.23558]
[1680601333534,0.17738168,28159.0,28153.0,0.04188609]
[1680601333774,6e-05,28165.0,28161.0,0.4]
[1680601334007,0.09767844,28173.0,28164.0,0.8733742]
[1680601334258,0.15811391,28170.0,28167.0,0.0751]
[1680601334504,0.32013415,28172.0,28171.0,0.4]
[1680601334768,0.00105531,28173.0,28171.0,1.61458311]
[1680601335008,0.33676285,28172.0,28171.0,2.29758]
[1680601335243,0.33676285,28172.0,28171.0,2.82748]
[1680601335476,0.06043547,28172.0,28171.0,3.28517056]
[1680601335725,0.23455259,28172.0,28171.0,2.75168]
[1680601335998,0.26647902,28172.0,28171.0,0.70018]
[1680601336225,0.79969459,28172.0,28171.0,0.70018]
[1680601336464,0.2,28162.0,28159.0,0.08388057]
[1680601336694,0.2,28162.0,28157.0,0.33816114]
[1680601336695,0.06037547,28158.0,28156.0,0.25428057]
[1680601336932,0.06037547,28158.0,28156.0,0.08406057]
[1680601337387,0.07417547,28158.0,28156.0,0.00018]
[1680601337616,0.08553947,28158.0,28156.0,0.00018]
[1680601338081,0.2,28156.0,28155.0,0.00018]
[1680601338312,0.06019547,28155.0,28154.0,0.4083952]
[1680601338542,0.06019547,28155.0,28154.0,0.00018]
[1680601338781,0.06019547,28155.0,28153.0,0.08406057]
[1680601339017,0.07156047,28155.0,28153.0,0.08406057]
[1680601339256,0.06019547,28155.0,28154.0,0.028]
[1680601339483,0.07156047,28155.0,28154.0,0.4513507]
[1680601339717,0.06019547,28155.0,28154.0,0.4233507]
[1680601340847,0.06019547,28155.0,28154.0,0.4513507]
[1680601341389,0.03422562,28155.0,28154.0,0.4513507]
[1680601341822,0.03422562,28155.0,28154.0,0.70350737]
[1680601342041,0.00018,28161.0,28155.0,0.10267685]
[1680601342268,0.00018,28163.0,28160.0,0.17753]
[1680601342493,5.98e-06,28162.0,28161.0,0.49660737]
[1680601342716,0.00018,28170.0,28162.0,0.03558]
[1680601342941,0.00018,28170.0,28169.0,0.17748]
[1680601343175,0.00018,28170.0,28169.0,0.31937681]
[1680601343642,0.00018,28170.0,28169.0,0.67408737]
[1680601343866,0.00018,28170.0,28169.0,0.68258737]
[1680601344095,0.20018,28171.0,28169.0,0.56869056]
[1680601344326,0.20018,28171.0,28170.0,0.83059222]
[1680601344553,0.00018,28171.0,28170.0,0.36321056]
[1680601344799,0.02299,28172.0,28171.0,0.90035999]
[1680601345029,0.02299,28172.0,28171.0,1.25507055]
[1680601345252,0.02299,28172.0,28171.0,0.96357055]
[1680601345486,0.02287,28172.0,28171.0,0.96357055]
[1680601345944,0.02287,28172.0,28171.0,1.21357055]
[1680601346417,0.02287,28172.0,28171.0,1.46795055]
[1680601347585,0.02287,28172.0,28171.0,1.41185055]
[1680601347808,0.02287,28172.0,28171.0,1.38403055]
[1680601348033,0.02287,28172.0,28171.0,1.41203055]
[1680601348280,0.01287,28172.0,28171.0,1.41185055]
[1680601348501,0.01287,28172.0,28171.0,1.79481796]
[1680601348761,0.01287,28172.0,28171.0,1.82300901]
[1680601348990,0.01287,28172.0,28171.0,1.83584304]
[1680601349650,0.01287,28172.0,28171.0,1.41185055]
[1680601349872,0.01287,28172.0,28171.0,1.83237592]
[1680601350747,0.01287,28172.0,28171.0,1.41185055]
[1680601350973,0.02299,28173.0,28172.0,0.32573999]
[1680601351184,0.02299,28173.0,28172.0,0.66719215]
[1680601351407,0.02299,28173.0,28172.0,0.83747215]
[1680601352098,0.02299,28173.0,28172.0,0.86547215]
[1680601352552,0.02299,28173.0,28172.0,0.89727215]
[1680601353240,0.02394866,28178.0,28177.0,0.28440307]
[1680601353474,0.25283629,28178.0,28177.0,0.28440307]
[1680601353708,0.32832906,28178.0,28177.0,0.28458307]
[1680601353953,0.82726929,28178.0,28177.0,0.28458307]
[1680601354186,1.12726929,28178.0,28177.0,0.28458307]
[1680601354426,1.12760787,28178.0,28177.0,0.28458307]
[1680601354611,1.12778787,28178.0,28177.0,0.28440307]
[1680601354814,1.12778787,28178.0,28177.0,0.30040307]
[1680601355014,1.12778787,28178.0,28177.0,0.29540307]
[1680601355162,1.12978787,28178.0,28177.0,0.29640307]
[1680601355364,1.12166496,28178.0,28177.0,0.29640307]
[1680601357714,1.11966496,28178.0,28177.0,0.27940307]
[1680601357931,1.12166496,28178.0,28177.0,0.27940307]
[1680601358159,0.3,28177.0,28176.0,0.00018]
[1680601358402,0.5,28174.0,28172.0,0.00333999]
[1680601358630,1.26231425,28173.0,28171.0,0.69261998]
[1680601358866,0.24120024,28172.0,28171.0,0.69249998]
[1680601359079,0.55273824,28172.0,28171.0,0.69249998]
[1680601359310,0.80097126,28172.0,28171.0,0.69249998]
[1680601359533,0.55273824,28172.0,28171.0,0.69249998]
[1680601360955,0.85273824,28172.0,28171.0,0.67009998]
[1680601361189,1.02313824,28172.0,28171.0,0.67009998]
[1680601361417,1.03163824,28172.0,28171.0,0.67009998]
[1680601361654,1.03363824,28172.0,28171.0,0.67109998]
[1680601361884,1.25619398,28172.0,28171.0,0.67009998]
[1680601362119,1.25819398,28172.0,28171.0,0.67209998]
[1680601362551,1.25819398,28172.0,28171.0,0.67203357]
[1680601362790,1.25419398,28172.0,28171.0,0.66959957]
[1680601363233,1.2545314,28172.0,28171.0,0.66959957]
[1680601364155,1.2565314,28172.0,28171.0,0.67159957]
[1680601364376,1.2545314,28172.0,28171.0,0.27603252]
[1680601364613,1.7515314,28172.0,28171.0,0.002]
[1680601364841,1.7513514,28172.0,28171.0,0.002]
[1680601365508,0.5,28168.0,28162.0,0.00018]
[1680601365730,0.18386844,28163.0,28162.0,0.00018]
[1680601365953,0.3,28162.0,28161.0,0.00018]
[1680601366175,0.54739571,28162.0,28161.0,0.00018]
[1680601367812,0.54739571,28162.0,28160.0,0.00018]
[1680601368034,0.23651375,28161.0,28160.0,0.00018]
[1680601368259,0.33230763,28161.0,28160.0,0.00018]
[1680601369664,0.63230763,28161.0,28160.0,0.00018]
[1680601369830,0.63230763,28161.0,28160.0,0.10018]
[1680601370222,0.67207863,28161.0,28160.0,0.10018]
[1680601370808,0.65927863,28161.0,28160.0,0.10018]
[1680601371257,0.00030549,28161.0,28160.0,0.80510737]
[1680601371487,0.00098797,28168.0,28167.0,0.19999438]
[1680601371782,0.00098797,28168.0,28167.0,0.34189119]
[1680601372011,0.11762867,28172.0,28167.0,0.90997119]
[1680601372234,0.009999,28172.0,28168.0,0.14189681]
[1680601372462,6e-05,28172.0,28168.0,0.14189681]
[1680601372911,6e-05,28172.0,28169.0,0.3]
[1680601373134,6e-05,28172.0,28170.0,1.02955003]
[1680601373358,0.009999,28172.0,28171.0,0.3]
[1680601373579,0.009999,28172.0,28170.0,1.02973003]
[1680601373818,0.009999,28172.0,28170.0,1.02955003]
[1680601374042,0.17931124,28172.0,28170.0,1.02955003]
[1680601374286,0.17931124,28172.0,28170.0,0.59982441]
[1680601374636,0.18131124,28172.0,28170.0,0.60982441]
[1680601374859,0.17931124,28172.0,28170.0,0.59982441]
[1680601375103,0.18131124,28172.0,28170.0,0.60982441]
[1680601375313,0.00033772,28171.0,28170.0,0.59982441]
[1680601375538,0.00033772,28171.0,28170.0,0.60982441]
[1680601375734,0.03015472,28171.0,28170.0,0.60982441]
[1680601376363,0.03015472,28171.0,28170.0,0.21017438]
[1680601376364,0.23315989,28171.0,28170.0,0.21017438]
[1680601376806,0.36923221,28171.0,28170.0,0.20017438]
[1680601377651,0.37223221,28171.0,28170.0,0.21017438]
[1680601377870,0.36923221,28171.0,28170.0,0.20017438]
[1680601378080,0.23515989,28171.0,28170.0,0.01018]
[1680601378307,0.23515989,28171.0,28168.0,0.19999438]
[1680601378308,0.23315989,28171.0,28169.0,0.00018]
[1680601378532,0.19695383,28170.0,28168.0,0.08366781]
[1680601378735,0.06958,28169.0,28168.0,0.08366781]
[1680601378948,0.23920728,28169.0,28167.0,0.20934952]
[1680601379175,0.22634367,28168.0,28167.0,0.08384781]
[1680601379439,0.23628367,28168.0,28167.0,0.08384781]
[1680601380092,0.17963029,28168.0,28167.0,0.00018]
[1680601380308,0.17963029,28168.0,28167.0,0.08366781]
[1680601381346,0.17963029,28168.0,28167.0,0.5414771]
[1680601381347,0.00994,28168.0,28167.0,0.5414771]
[1680601381557,0.01094,28168.0,28167.0,0.6251449]
[1680601381776,0.00994,28168.0,28167.0,0.91880162]
[1680601382006,0.0262877,28168.0,28167.0,0.59685404]
[1680601382232,0.30869675,28168.0,28167.0,0.72334072]
[1680601382659,0.30869675,28168.0,28167.0,0.55600511]
[1680601383095,0.30769675,28168.0,28167.0,0.54600511]
[1680601383308,0.31069675,28168.0,28167.0,0.55600511]
[1680601383548,0.31069675,28168.0,28167.0,0.54600511]
[1680601383972,0.29534905,28168.0,28167.0,0.08451089]
[1680601384193,0.29634905,28168.0,28167.0,0.09451089]
[1680601384427,0.29234905,28168.0,28167.0,0.08451089]
[1680601384625,0.17969331,28168.0,28167.0,0.08451089]
[1680601384904,0.17969331,28168.0,28167.0,0.09451089]
[1680601384905,0.18069331,28168.0,28167.0,0.09451089]
[1680601385732,0.18069331,28168.0,28167.0,0.22099757]
[1680601386205,0.18069331,28168.0,28167.0,0.09451089]
[1680601386615,0.18069331,28168.0,28167.0,0.01018]
[1680601386987,0.17969331,28168.0,28167.0,0.00018]
[1680601387224,0.21784181,28168.0,28167.0,0.01018]
[1680601387400,0.34890925,28168.0,28167.0,0.00018]
[1680601387818,0.34990925,28168.0,28167.0,0.01018]
[1680601388455,0.21717895,28168.0,28166.0,0.00018]
[1680601388718,0.21717895,28168.0,28164.0,0.00018]
[1680601388719,0.80809833,28167.0,28164.0,0.00018]
[1680601388943,0.17000541,28165.0,28164.0,0.00018]
[1680601389174,0.21853741,28165.0,28164.0,0.00018]
[1680601389399,0.21853741,28165.0,28164.0,0.08695518]
[1680601389840,0.21853741,28165.0,28164.0,0.08677518]
[1680601390285,0.21853741,28165.0,28163.0,0.00018]
[1680601390496,0.24266509,28164.0,28162.0,0.64108213]
[1680601390723,0.23649658,28163.0,28162.0,0.64108213]
[1680601391155,0.23649658,28163.0,28162.0,0.20017438]
[1680601391589,0.18026258,28163.0,28162.0,0.57820246]
[1680601392512,0.18059876,28163.0,28162.0,0.57820246]
[1680601392721,0.21146002,28163.0,28162.0,0.57820246]
[1680601393371,0.21246002,28163.0,28162.0,0.58420246]
[1680601393597,0.17165676,28163.0,28162.0,0.20617438]
[1680601393837,0.17165676,28163.0,28162.0,0.20599438]
[1680601393838,0.00121777,28163.0,28162.0,0.20599438]
[1680601394060,0.00021777,28163.0,28162.0,0.30620727]
[1680601394281,0.00021777,28163.0,28162.0,0.73220649]
[1680601394529,0.009941,28166.0,28165.0,0.19999438]
[1680601394744,0.17994641,28166.0,28165.0,0.19999438]
[1680601395191,0.17994641,28166.0,28165.0,0.20017438]
[1680601396286,0.17994641,28166.0,28165.0,0.19999438]
[1680601396728,0.06494641,28166.0,28165.0,0.19999438]
[1680601396933,0.07788741,28166.0,28165.0,0.20999438]
[1680601397157,0.09729038,28166.0,28165.0,0.19999438]
[1680601397377,0.09929038,28166.0,28165.0,0.20999438]
[1680601397614,0.09729038,28166.0,28165.0,0.19999438]
[1680601398060,0.2075615,28166.0,28165.0,0.19999438]
[1680601398304,0.2075615,28166.0,28165.0,0.01]
[1680601398523,0.356812,28166.0,28165.0,0.01]
[1680601398779,0.34993783,28166.0,28165.0,0.01]
[1680601399249,0.34811783,28166.0,28164.0,0.34387796]
[1680601399494,0.036518,28165.0,28164.0,0.34387796]
[1680601399724,0.046639,28165.0,28164.0,0.34387796]
[1680601399957,0.046459,28165.0,28164.0,0.34387796]
[1680601400163,0.00051183,28166.0,28164.0,0.34387796]
[1680601400378,0.001,28166.0,28165.0,0.3]
[1680601400587,0.001,28166.0,28164.0,0.34387796]
[1680601400588,0.009941,28166.0,28164.0,0.34387796]
[1680601400810,0.001,28165.0,28164.0,0.34987796]
[1680601401028,0.010941,28165.0,28164.0,0.34987796]
[1680601401937,0.03774957,28165.0,28163.0,0.19999438]
[1680601402152,0.03774957,28165.0,28163.0,0.61967622]
[1680601402388,0.029823,28165.0,28163.0,0.61967622]
[1680601402864,0.10867771,28165.0,28163.0,0.19999438]
[1680601403085,0.036782,28164.0,28163.0,0.19999438]
[1680601403302,0.046723,28164.0,28163.0,0.19999438]
[1680601403520,0.009941,28164.0,28163.0,0.20899438]
[1680601403737,0.02090877,28164.0,28163.0,0.20899438]
[1680601403945,0.02090877,28164.0,28163.0,0.58896527]
[1680601404168,0.009941,28164.0,28163.0,0.57996527]
[1680601404416,0.01027244,28164.0,28163.0,0.57996527]
[1680601405562,0.01127244,28164.0,28163.0,0.58896527]
[1680601405774,0.00133144,28164.0,28163.0,0.58896527]
[1680601405998,0.01127244,28164.0,28163.0,0.58896527]
[1680601406234,0.01585574,28164.0,28163.0,0.58896527]
[1680601406437,0.0155243,28164.0,28163.0,0.58896527]
[1680601408701,0.0055833,28164.0,28163.0,0.58896527]
[1680601409130,0.0155243,28164.0,28163.0,0.58896527]
[1680601409357,0.010941,28164.0,28163.0,0.58896527]
[1680601409819,0.001,28164.0,28163.0,0.58896527]
[1680601410053,0.001,28164.0,28163.0,0.58875825]
[1680601410932,0.010941,28164.0,28163.0,0.58875825]
[1680601412296,0.001,28164.0,28163.0,0.20878736]
[1680601412539,0.01549116,28164.0,28163.0,0.50878736]
[1680601412781,0.010941,28164.0,28163.0,0.50878736]
[1680601413010,0.010941,28164.0,28163.0,0.90153963]
[1680601413238,0.001,28164.0,28163.0,0.90153963]
[1680601413692,0.010941,28164.0,28163.0,0.90153963]
[1680601415546,0.010941,28164.0,28163.0,0.60153963]
[1680601416001,0.01779616,28164.0,28163.0,0.60153963]
[1680601416687,0.010941,28164.0,28163.0,0.60153963]
[1680601417783,0.010941,28164.0,28163.0,0.20878736]
[1680601419392,0.010941,28164.0,28163.0,0.50878736]
[1680601419532,0.010941,28164.0,28163.0,0.20878736]
[1680601420160,0.010941,28164.0,28163.0,0.45878736]
[1680601420372,0.01815808,28164.0,28163.0,0.20878736]
[1680601421021,0.0177307,28164.0,28163.0,0.20878736]
[1680601421390,0.0542167,28164.0,28163.0,0.20878736]
[1680601421599,0.0542167,28164.0,28163.0,0.29311825]
[1680601421799,0.0177307,28164.0,28163.0,0.29311825]
[1680601422409,0.01806214,28164.0,28163.0,0.29311825]
[1680601422773,0.10266821,28164.0,28163.0,0.20878736]
[1680601423354,0.10266821,28164.0,28163.0,0.19978736]
[1680601423355,0.10209559,28164.0,28163.0,0.19978736]
[1680601423555,0.10309559,28164.0,28163.0,0.20578736]
[1680601423910,0.05352052,28164.0,28163.0,0.19978736]
[1680601424131,0.06752052,28164.0,28163.0,0.20078736]
[1680601425653,0.06752052,28164.0,28163.0,0.71475621]
[1680601425654,0.02427244,28164.0,28163.0,0.71475621]
[1680601426277,0.01027244,28164.0,28163.0,0.71375621]
[1680601426706,0.02427244,28164.0,28163.0,0.71475621]
[1680601427534,0.02427244,28164.0,28163.0,0.28511825]
[1680601427738,0.01433144,28164.0,28163.0,0.36812297]
[1680601427966,0.02427244,28164.0,28163.0,1.20024713]
[1680601428168,0.01433144,28164.0,28163.0,1.01908665]
[1680601428373,0.014,28164.0,28163.0,0.85175104]
[1680601428588,0.014,28164.0,28163.0,1.29569742]
[1680601428790,0.014,28164.0,28163.0,2.57369057]
[1680601428996,0.014,28164.0,28163.0,1.29569742]
[1680601429224,0.009941,28166.0,28164.0,0.3]
[1680601429422,0.009941,28166.0,28165.0,0.23348647]
[1680601429654,0.009941,28166.0,28165.0,0.21175147]
[1680601429855,0.00099271,28169.0,28165.0,0.21175147]
[1680601430077,0.01093271,28169.0,28168.0,0.19978736]
[1680601430299,0.00994,28169.0,28168.0,0.19978736]
[1680601430813,0.01194,28169.0,28168.0,0.19978736]
[1680601431030,0.06397266,28169.0,28168.0,0.19978736]
[1680601431894,0.06197266,28169.0,28168.0,0.19978736]
[1680601432530,0.06297266,28169.0,28168.0,0.20878736]
[1680601432741,0.05480896,28169.0,28168.0,0.19978736]
[1680601432962,0.05580896,28169.0,28168.0,0.20578736]
[1680601433412,0.01094,28169.0,28168.0,0.20578736]
[1680601433628,0.01094,28169.0,28168.0,0.66222049]